[Event "*** Titled Tuesday Blitz"]
[Site "Chess.com"]
[Date "2021.04.27"]
[Round "1"]
[White "FMOlexandrProhorov"]
[Black "Harry_Rakkel"]
[Result "1-0"]
[WhiteElo "2273"]
[BlackElo "2575"]
[TimeControl "180+1"]
[EndTime "10:05:23 PDT"]
[Termination "FMOlexandrProhorov won by checkmate"]

1. d4 {[%clk 0:02:59.9]} 1... Nf6 {[%clk 0:02:59]} 2. c4 {[%clk 0:02:58.2]} 2...
e6 {[%clk 0:02:58.7]} 3. Nc3 {[%clk 0:02:56.3]} 3... Bb4 {[%clk 0:02:58.7]} 4.
f3 {[%clk 0:02:54.7]} 4... c5 {[%clk 0:02:55.5]} 5. d5 {[%clk 0:02:54.3]} 5...
b5 {[%clk 0:02:50.4]} 6. e4 {[%clk 0:02:51.6]} 6... O-O {[%clk 0:02:48.4]} 7. e5
{[%clk 0:02:39.7]} 7... Ne8 {[%clk 0:02:40.9]} 8. cxb5 {[%clk 0:02:19.5]} 8...
d6 {[%clk 0:02:33.5]} 9. exd6 {[%clk 0:02:06.1]} 9... Nxd6 {[%clk 0:02:21.5]}
10. dxe6 {[%clk 0:01:52.7]} 10... Bxe6 {[%clk 0:02:11.7]} 11. Bd3 {[%clk
0:01:46.2]} 11... c4 {[%clk 0:02:08]} 12. Bc2 {[%clk 0:01:43.6]} 12... Qh4+
{[%clk 0:01:46.6]} 13. g3 {[%clk 0:01:37.9]} 13... Qe7 {[%clk 0:01:44.6]} 14.
Ne2 {[%clk 0:01:37.3]} 14... Nxb5 {[%clk 0:01:41.1]} 15. O-O {[%clk 0:01:33.2]}
15... Rd8 {[%clk 0:01:34.4]} 16. Qe1 {[%clk 0:01:32.6]} 16... Bc5+ {[%clk
0:01:29.1]} 17. Kg2 {[%clk 0:01:31.1]} 17... Nxc3 {[%clk 0:01:17.5]} 18. Nxc3
{[%clk 0:01:32]} 18... Nc6 {[%clk 0:01:01.9]} 19. Qe4 {[%clk 0:01:29.9]} 19...
Qd7 {[%clk 0:00:54.3]} 20. Qxh7+ {[%clk 0:01:25.7]} 20... Kf8 {[%clk 0:00:54.7]}
21. Qh8+ {[%clk 0:01:21.7]} 21... Ke7 {[%clk 0:00:53.6]} 22. Bg5+ {[%clk
0:01:22.3]} 22... Kd6 {[%clk 0:00:49.2]} 23. Nb5+ {[%clk 0:01:10.1]} 23... Kd5
{[%clk 0:00:38]} 24. Be4+ {[%clk 0:01:08.4]} 24... Ke5 {[%clk 0:00:37]} 25.
Qxg7+ {[%clk 0:01:08.7]} 25... f6 {[%clk 0:00:35.6]} 26. Qxf6# {[%clk
0:01:08.7]} 1-0

[Event "*** Titled Tuesday Blitz"]
[Site "Chess.com"]
[Date "2021.04.27"]
[Round "1"]
[White "YoreDea"]
[Black "miredenizdogan"]
[Result "1-0"]
[WhiteElo "2563"]
[BlackElo "2233"]
[TimeControl "180+1"]
[EndTime "10:05:24 PDT"]
[Termination "YoreDea won by resignation"]

1. e4 {[%clk 0:03:00.9]} 1... e6 {[%clk 0:02:28.1]} 2. d4 {[%clk 0:03:00.7]}
2... d5 {[%clk 0:02:25.5]} 3. e5 {[%clk 0:03:01.2]} 3... c5 {[%clk 0:02:25.1]}
4. c3 {[%clk 0:03:01.8]} 4... Nc6 {[%clk 0:02:25.6]} 5. Nf3 {[%clk 0:03:01.2]}
5... Qb6 {[%clk 0:02:24.9]} 6. a3 {[%clk 0:03:01.2]} 6... Nh6 {[%clk 0:02:23.8]}
7. b4 {[%clk 0:02:57.4]} 7... cxd4 {[%clk 0:02:23.4]} 8. cxd4 {[%clk 0:02:58.3]}
8... Nf5 {[%clk 0:02:23.2]} 9. Bd3 {[%clk 0:02:57.4]} 9... Nfxd4 {[%clk
0:02:14.5]} 10. O-O {[%clk 0:02:46.3]} 10... Nxf3+ {[%clk 0:02:11.7]} 11. Qxf3
{[%clk 0:02:46.2]} 11... Qd4 {[%clk 0:01:57.9]} 12. Ra2 {[%clk 0:02:05]} 12...
Nxe5 {[%clk 0:01:44.2]} 13. Bb5+ {[%clk 0:02:05]} 13... Bd7 {[%clk 0:01:44.1]}
14. Qe2 {[%clk 0:01:59.3]} 14... Bd6 {[%clk 0:01:22.4]} 15. Bb2 {[%clk
0:01:53.4]} 15... Qf4 {[%clk 0:01:21.9]} 16. g3 {[%clk 0:01:49.4]} 16... Qe4
{[%clk 0:01:09.1]} 17. Bxe5 {[%clk 0:01:43.9]} 17... Bxe5 {[%clk 0:01:00.5]} 18.
Bxd7+ {[%clk 0:01:39.8]} 18... Kxd7 {[%clk 0:01:00.9]} 19. Qb5+ {[%clk
0:01:40.7]} 19... Ke7 {[%clk 0:00:50.7]} 20. Re2 {[%clk 0:01:41.6]} 20... Qf5
{[%clk 0:00:43.9]} 21. Rfe1 {[%clk 0:01:41.7]} 21... Bd6 {[%clk 0:00:36.6]} 22.
Qxb7+ {[%clk 0:01:37.4]} 22... Kf6 {[%clk 0:00:36.5]} 23. Nd2 {[%clk 0:01:37.9]}
23... Rac8 {[%clk 0:00:33]} 24. Qxa7 {[%clk 0:01:34.1]} 24... Rc3 {[%clk
0:00:30.8]} 25. Qd4+ {[%clk 0:01:33.2]} 1-0

[Event "*** Titled Tuesday Blitz"]
[Site "Chess.com"]
[Date "2021.04.27"]
[Round "1"]
[White "WisdomGame"]
[Black "CrushingKings"]
[Result "0-1"]
[WhiteElo "2110"]
[BlackElo "2507"]
[TimeControl "180+1"]
[EndTime "10:05:24 PDT"]
[Termination "CrushingKings won by checkmate"]

1. e4 {[%clk 0:02:51.2]} 1... g6 {[%clk 0:02:59.6]} 2. d4 {[%clk 0:02:49.7]}
2... Bg7 {[%clk 0:03:00.5]} 3. f4 {[%clk 0:02:49]} 3... d5 {[%clk 0:02:59.2]} 4.
e5 {[%clk 0:02:48.2]} 4... h5 {[%clk 0:02:59.8]} 5. Nc3 {[%clk 0:02:46.3]} 5...
Nh6 {[%clk 0:03:00]} 6. Bd3 {[%clk 0:02:44]} 6... Bg4 {[%clk 0:02:57.3]} 7. Nf3
{[%clk 0:02:42.6]} 7... Nf5 {[%clk 0:02:57.7]} 8. O-O {[%clk 0:02:06.4]} 8...
Nxd4 {[%clk 0:02:51.3]} 9. Bxg6 {[%clk 0:01:35.2]} 9... Nxf3+ {[%clk 0:02:49.6]}
10. gxf3 {[%clk 0:01:34.9]} 10... Bh3 {[%clk 0:02:48.2]} 11. Bd3 {[%clk
0:01:14.4]} 11... Bxf1 {[%clk 0:02:47.2]} 12. Bxf1 {[%clk 0:01:15.3]} 12... e6
{[%clk 0:02:47.3]} 13. Be3 {[%clk 0:01:13.3]} 13... Nd7 {[%clk 0:02:43.4]} 14.
Kh1 {[%clk 0:01:08.7]} 14... a6 {[%clk 0:02:43.5]} 15. Ne2 {[%clk 0:00:57.5]}
15... c5 {[%clk 0:02:43.6]} 16. c3 {[%clk 0:00:57]} 16... Qc7 {[%clk 0:02:40.5]}
17. Bh3 {[%clk 0:00:50.9]} 17... O-O-O {[%clk 0:02:28.9]} 18. b4 {[%clk
0:00:49.4]} 18... Bf8 {[%clk 0:02:00.1]} 19. Qb3 {[%clk 0:00:34.1]} 19... Kb8
{[%clk 0:01:49.6]} 20. a4 {[%clk 0:00:24.7]} 20... cxb4 {[%clk 0:01:46.5]} 21.
cxb4 {[%clk 0:00:25.6]} 21... Qc4 {[%clk 0:01:47.2]} 22. Qxc4 {[%clk 0:00:24.1]}
22... dxc4 {[%clk 0:01:48.1]} 23. b5 {[%clk 0:00:23.6]} 23... Bc5 {[%clk
0:01:47]} 24. Bxc5 {[%clk 0:00:10.2]} 24... Nxc5 {[%clk 0:01:47.9]} 25. Rc1
{[%clk 0:00:10.1]} 25... Rhg8 {[%clk 0:01:40.7]} 26. bxa6 {[%clk 0:00:06.3]}
26... Nd3 {[%clk 0:01:39]} 27. a5 {[%clk 0:00:07.2]} 27... Nf2# {[%clk
0:01:38.5]} 0-1

[Event "*** Titled Tuesday Blitz"]
[Site "Chess.com"]
[Date "2021.04.27"]
[Round "1"]
[White "Pantata007"]
[Black "KhatanbaatarBazar"]
[Result "0-1"]
[WhiteElo "2342"]
[BlackElo "2674"]
[TimeControl "180+1"]
[EndTime "10:05:31 PDT"]
[Termination "KhatanbaatarBazar won on time"]

1. d4 {[%clk 0:02:56.8]} 1... d5 {[%clk 0:02:59.6]} 2. c4 {[%clk 0:02:54.8]}
2... c6 {[%clk 0:03:00]} 3. Nc3 {[%clk 0:02:54.8]} 3... Nf6 {[%clk 0:02:59.8]}
4. e3 {[%clk 0:02:54.9]} 4... e6 {[%clk 0:03:00]} 5. Nf3 {[%clk 0:02:54.7]} 5...
Nbd7 {[%clk 0:03:00.6]} 6. Bd3 {[%clk 0:02:54.9]} 6... dxc4 {[%clk 0:03:00.9]}
7. Bxc4 {[%clk 0:02:55.8]} 7... b5 {[%clk 0:03:01.5]} 8. Bd3 {[%clk 0:02:56]}
8... Bb7 {[%clk 0:03:02]} 9. e4 {[%clk 0:02:49.2]} 9... b4 {[%clk 0:03:01.8]}
10. Na4 {[%clk 0:02:48.7]} 10... c5 {[%clk 0:03:01.8]} 11. e5 {[%clk 0:02:48.3]}
11... Nd5 {[%clk 0:03:02]} 12. O-O {[%clk 0:02:48.6]} 12... cxd4 {[%clk
0:03:01.5]} 13. Re1 {[%clk 0:02:48.9]} 13... Be7 {[%clk 0:02:58.7]} 14. Nxd4
{[%clk 0:02:44.9]} 14... O-O {[%clk 0:02:58.7]} 15. Qg4 {[%clk 0:02:44.8]} 15...
Nc5 {[%clk 0:02:53.1]} 16. Bh6 {[%clk 0:02:22.7]} 16... g6 {[%clk 0:02:53.2]}
17. Nxc5 {[%clk 0:02:17.2]} 17... Bxc5 {[%clk 0:02:53]} 18. Bxf8 {[%clk
0:02:17.3]} 18... Qxf8 {[%clk 0:02:53.4]} 19. Nb3 {[%clk 0:01:55.7]} 19... Bb6
{[%clk 0:02:53.3]} 20. Rac1 {[%clk 0:01:43.2]} 20... Rd8 {[%clk 0:02:47.8]} 21.
Be4 {[%clk 0:01:34.1]} 21... a5 {[%clk 0:02:43.6]} 22. Red1 {[%clk 0:01:32.1]}
22... a4 {[%clk 0:02:43.6]} 23. Nd2 {[%clk 0:01:31.9]} 23... a3 {[%clk
0:02:41.7]} 24. bxa3 {[%clk 0:01:29.3]} 24... h5 {[%clk 0:02:36]} 25. Qh4 {[%clk
0:01:20.1]} 25... Nc3 {[%clk 0:02:31.5]} 26. Bxb7 {[%clk 0:00:52.5]} 26... Ne2+
{[%clk 0:02:30.4]} 27. Kh1 {[%clk 0:00:51.3]} 27... Nxc1 {[%clk 0:02:30.3]} 28.
axb4 {[%clk 0:00:39.7]} 28... Nd3 {[%clk 0:02:26]} 29. Ne4 {[%clk 0:00:28.9]}
29... Bxf2 {[%clk 0:02:08.8]} 30. Qg5 {[%clk 0:00:11.7]} 30... Bb6 {[%clk
0:02:03.4]} 31. Nf6+ {[%clk 0:00:10.9]} 31... Kh8 {[%clk 0:02:03.5]} 32. Rf1
{[%clk 0:00:02.2]} 32... Nf2+ {[%clk 0:02:02.7]} 0-1

[Event "*** Titled Tuesday Blitz"]
[Site "Chess.com"]
[Date "2021.04.27"]
[Round "1"]
[White "MelihKaanCan"]
[Black "NateSolon"]
[Result "0-1"]
[WhiteElo "2314"]
[BlackElo "2648"]
[TimeControl "180+1"]
[EndTime "10:05:31 PDT"]
[Termination "NateSolon won by resignation"]

1. d4 {[%clk 0:02:58.8]} 1... Nf6 {[%clk 0:02:57.5]} 2. c4 {[%clk 0:02:58.7]}
2... e6 {[%clk 0:02:52.4]} 3. Nc3 {[%clk 0:02:55]} 3... Bb4 {[%clk 0:02:51]} 4.
e3 {[%clk 0:02:53.1]} 4... O-O {[%clk 0:02:49.1]} 5. Bd3 {[%clk 0:02:50.2]} 5...
c5 {[%clk 0:02:48.8]} 6. a3 {[%clk 0:02:49.8]} 6... Bxc3+ {[%clk 0:02:48.1]} 7.
bxc3 {[%clk 0:02:50.7]} 7... Nc6 {[%clk 0:02:48.1]} 8. Ne2 {[%clk 0:02:49.9]}
8... b6 {[%clk 0:02:44.8]} 9. e4 {[%clk 0:02:42.1]} 9... d6 {[%clk 0:02:43.2]}
10. Ng3 {[%clk 0:02:36.3]} 10... cxd4 {[%clk 0:02:38.7]} 11. cxd4 {[%clk
0:02:24.3]} 11... Nxd4 {[%clk 0:02:36.8]} 12. O-O {[%clk 0:02:19.5]} 12... Bb7
{[%clk 0:02:26.9]} 13. Bb2 {[%clk 0:02:17.9]} 13... Nc6 {[%clk 0:02:21.7]} 14.
f4 {[%clk 0:02:09.9]} 14... Rc8 {[%clk 0:02:20.4]} 15. Qf3 {[%clk 0:01:27.7]}
15... Na5 {[%clk 0:02:07.7]} 16. Rac1 {[%clk 0:01:16.1]} 16... Nb3 {[%clk
0:01:56.4]} 17. Rce1 {[%clk 0:01:12]} 17... Nd2 {[%clk 0:01:53.4]} 18. Qf2
{[%clk 0:01:12.2]} 18... Nxf1 {[%clk 0:01:52.8]} 19. Rxf1 {[%clk 0:01:13.1]}
19... Qe7 {[%clk 0:01:33]} 20. Kh1 {[%clk 0:01:08.8]} 20... Ng4 {[%clk
0:01:16.8]} 21. Qf3 {[%clk 0:01:06.2]} 21... f5 {[%clk 0:01:11.5]} 22. h3 {[%clk
0:00:59.5]} 22... Nf6 {[%clk 0:01:11.2]} 23. Re1 {[%clk 0:00:52.3]} 23... Qf7
{[%clk 0:01:00.1]} 24. exf5 {[%clk 0:00:46.1]} 24... Bxf3 {[%clk 0:00:58.5]} 0-1

[Event "*** Titled Tuesday Blitz"]
[Site "Chess.com"]
[Date "2021.04.27"]
[Round "1"]
[White "AttackSparrow"]
[Black "halldorgretar"]
[Result "1-0"]
[WhiteElo "2511"]
[BlackElo "2134"]
[TimeControl "180+1"]
[EndTime "10:05:31 PDT"]
[Termination "AttackSparrow won on time"]

1. e4 {[%clk 0:03:00.9]} 1... e5 {[%clk 0:01:26.2]} 2. Nc3 {[%clk 0:02:55.3]}
2... Nc6 {[%clk 0:01:24.8]} 3. Bc4 {[%clk 0:02:54.7]} 3... Nf6 {[%clk
0:01:16.6]} 4. d3 {[%clk 0:02:53]} 4... Na5 {[%clk 0:01:09.9]} 5. Qf3 {[%clk
0:02:51.8]} 5... Nxc4 {[%clk 0:01:06.5]} 6. dxc4 {[%clk 0:02:52.7]} 6... c6
{[%clk 0:00:59.4]} 7. Nge2 {[%clk 0:02:48.3]} 7... Be7 {[%clk 0:00:53.3]} 8. h3
{[%clk 0:02:46.9]} 8... O-O {[%clk 0:00:52.8]} 9. b3 {[%clk 0:02:43.4]} 9... d6
{[%clk 0:00:32.5]} 10. a4 {[%clk 0:02:39.7]} 10... Be6 {[%clk 0:00:32.3]} 11.
Be3 {[%clk 0:02:25.8]} 11... d5 {[%clk 0:00:25.1]} 12. exd5 {[%clk 0:02:18]}
12... cxd5 {[%clk 0:00:22.2]} 13. cxd5 {[%clk 0:02:16.3]} 13... Nxd5 {[%clk
0:00:10.6]} 14. Rd1 {[%clk 0:01:45.6]} 14... Bb4 {[%clk 0:00:09.2]} 15. O-O
{[%clk 0:01:36.7]} 15... Bxc3 {[%clk 0:00:08.4]} 16. Nxc3 {[%clk 0:01:35.8]}
16... e4 {[%clk 0:00:08.4]} 17. Nxe4 {[%clk 0:01:32.2]} 17... Qc7 {[%clk
0:00:02.9]} 18. c4 {[%clk 0:01:22.2]} 18... Nxe3 {[%clk 0:00:01.8]} 19. Qxe3
{[%clk 0:01:23.1]} 19... Rfe8 {[%clk 0:00:01.2]} 20. Qf3 {[%clk 0:01:19.8]} 1-0

[Event "*** Titled Tuesday Blitz"]
[Site "Chess.com"]
[Date "2021.04.27"]
[Round "1"]
[White "Skat2704"]
[Black "Andrii_Prydun"]
[Result "1-0"]
[WhiteElo "2683"]
[BlackElo "2347"]
[TimeControl "180+1"]
[EndTime "10:05:32 PDT"]
[Termination "Skat2704 won by resignation"]

1. d4 {[%clk 0:03:00.9]} 1... Nf6 {[%clk 0:02:21.1]} 2. c4 {[%clk 0:02:59.5]}
2... c6 {[%clk 0:02:21]} 3. Nf3 {[%clk 0:02:58.2]} 3... e6 {[%clk 0:02:20.7]} 4.
Nc3 {[%clk 0:02:57.2]} 4... d5 {[%clk 0:02:20.9]} 5. Bg5 {[%clk 0:02:56]} 5...
Nbd7 {[%clk 0:02:21.2]} 6. e3 {[%clk 0:02:54.8]} 6... Qa5 {[%clk 0:02:20.2]} 7.
Nd2 {[%clk 0:02:52.9]} 7... Be7 {[%clk 0:02:18.1]} 8. Be2 {[%clk 0:02:50.6]}
8... O-O {[%clk 0:02:17.3]} 9. O-O {[%clk 0:02:48.8]} 9... a6 {[%clk 0:02:07.5]}
10. Rc1 {[%clk 0:02:46.3]} 10... b5 {[%clk 0:02:07]} 11. c5 {[%clk 0:02:44.6]}
11... e5 {[%clk 0:02:06.1]} 12. a3 {[%clk 0:02:42.8]} 12... Qd8 {[%clk
0:01:58.2]} 13. b4 {[%clk 0:02:40.3]} 13... a5 {[%clk 0:01:55.9]} 14. Nb3 {[%clk
0:02:37.9]} 14... axb4 {[%clk 0:01:54.5]} 15. axb4 {[%clk 0:02:38.6]} 15... e4
{[%clk 0:01:48.5]} 16. Na5 {[%clk 0:02:35.7]} 16... Nb8 {[%clk 0:01:36.5]} 17.
Nxb5 {[%clk 0:02:31.8]} 17... cxb5 {[%clk 0:01:34.3]} 18. Bxb5 {[%clk
0:02:31.9]} 18... Na6 {[%clk 0:01:25.6]} 19. Nc6 {[%clk 0:02:29.9]} 19... Qd7
{[%clk 0:01:23.3]} 20. Nxe7+ {[%clk 0:02:27.2]} 20... Qxe7 {[%clk 0:01:22.9]}
21. Ra1 {[%clk 0:02:27.4]} 21... Qb7 {[%clk 0:00:50.9]} 22. Bxa6 {[%clk
0:02:25.2]} 22... Rxa6 {[%clk 0:00:50.6]} 23. Rxa6 {[%clk 0:02:24.7]} 23... Qxa6
{[%clk 0:00:51.5]} 24. Qb3 {[%clk 0:02:21.5]} 24... Bd7 {[%clk 0:00:50.7]} 25.
Bxf6 {[%clk 0:02:11.4]} 25... Qxf6 {[%clk 0:00:51.6]} 26. b5 {[%clk 0:02:09.1]}
26... Rb8 {[%clk 0:00:47.8]} 27. b6 {[%clk 0:02:07.1]} 27... Qc6 {[%clk
0:00:46.9]} 28. Ra1 {[%clk 0:02:04.8]} 28... Ra8 {[%clk 0:00:46.4]} 29. Ra7
{[%clk 0:01:52.4]} 29... Qb7 {[%clk 0:00:46.5]} 30. Qa2 {[%clk 0:01:47.4]} 30...
Bc6 {[%clk 0:00:45.9]} 31. Rxb7 {[%clk 0:01:42.5]} 31... Bxb7 {[%clk 0:00:45.1]}
32. Qb2 {[%clk 0:01:40.1]} 32... Kf8 {[%clk 0:00:13.6]} 1-0

[Event "*** Titled Tuesday Blitz"]
[Site "Chess.com"]
[Date "2021.04.27"]
[Round "1"]
[White "Smile2005"]
[Black "Korchmar_Vasiliy"]
[Result "0-1"]
[WhiteElo "2361"]
[BlackElo "2705"]
[TimeControl "180+1"]
[EndTime "10:05:35 PDT"]
[Termination "Korchmar_Vasiliy won by checkmate"]

1. Nf3 {[%clk 0:02:59.8]} 1... d5 {[%clk 0:02:59.7]} 2. g3 {[%clk 0:02:59.8]}
2... g6 {[%clk 0:03:00.1]} 3. Bg2 {[%clk 0:03:00.7]} 3... Bg7 {[%clk 0:03:00.6]}
4. O-O {[%clk 0:03:01.6]} 4... e5 {[%clk 0:03:00.9]} 5. d3 {[%clk 0:03:02.3]}
5... Ne7 {[%clk 0:03:01.3]} 6. e4 {[%clk 0:03:02.4]} 6... O-O {[%clk 0:03:01.5]}
7. Nc3 {[%clk 0:03:02]} 7... d4 {[%clk 0:03:00.4]} 8. Nb1 {[%clk 0:03:01.3]}
8... c5 {[%clk 0:03:00.6]} 9. a4 {[%clk 0:03:01.6]} 9... Nbc6 {[%clk 0:03:01]}
10. Na3 {[%clk 0:03:01.9]} 10... h6 {[%clk 0:02:54.7]} 11. Nc4 {[%clk
0:03:01.7]} 11... Be6 {[%clk 0:02:55.2]} 12. Ne1 {[%clk 0:02:59.5]} 12... Qd7
{[%clk 0:02:36.4]} 13. f4 {[%clk 0:02:59.4]} 13... exf4 {[%clk 0:02:37.3]} 14.
Bxf4 {[%clk 0:02:58.2]} 14... g5 {[%clk 0:02:33.6]} 15. Bd2 {[%clk 0:02:55.3]}
15... Ng6 {[%clk 0:02:33.3]} 16. b3 {[%clk 0:02:52.5]} 16... b6 {[%clk
0:02:10.5]} 17. Bf3 {[%clk 0:02:49.4]} 17... Rab8 {[%clk 0:02:04.5]} 18. Bh5
{[%clk 0:02:40.7]} 18... Nge5 {[%clk 0:01:50.2]} 19. Nxe5 {[%clk 0:02:40.4]}
19... Nxe5 {[%clk 0:01:51.1]} 20. Nf3 {[%clk 0:02:40.6]} 20... Ng4 {[%clk
0:01:48]} 21. Bxg4 {[%clk 0:02:39.3]} 21... Bxg4 {[%clk 0:01:47.8]} 22. Qe1
{[%clk 0:02:32.7]} 22... f5 {[%clk 0:01:42.4]} 23. exf5 {[%clk 0:02:32.4]} 23...
Rbe8 {[%clk 0:01:38.9]} 24. Qf2 {[%clk 0:02:17.9]} 24... Rxf5 {[%clk 0:01:37.4]}
25. Qg2 {[%clk 0:02:17.6]} 25... Ref8 {[%clk 0:01:27]} 26. Nxg5 {[%clk
0:01:54.1]} 26... hxg5 {[%clk 0:01:19.6]} 27. Rxf5 {[%clk 0:01:54.4]} 27... Qxf5
{[%clk 0:01:20.5]} 28. Re1 {[%clk 0:01:54.2]} 28... Bh3 {[%clk 0:01:15.1]} 29.
Qe2 {[%clk 0:01:54.2]} 29... a6 {[%clk 0:00:57.6]} 30. b4 {[%clk 0:01:49.8]}
30... c4 {[%clk 0:00:34.8]} 31. dxc4 {[%clk 0:01:48.9]} 31... Qxc2 {[%clk
0:00:33.4]} 32. Rc1 {[%clk 0:01:39]} 32... Qf5 {[%clk 0:00:32]} 33. c5 {[%clk
0:01:38.5]} 33... d3 {[%clk 0:00:30.6]} 34. Qe1 {[%clk 0:01:36.8]} 34... Bd4+
{[%clk 0:00:29.8]} 35. Be3 {[%clk 0:01:34.5]} 35... Bxe3+ {[%clk 0:00:29.8]} 36.
Qxe3 {[%clk 0:01:34.7]} 36... Qf1+ {[%clk 0:00:30]} 37. Rxf1 {[%clk 0:01:35.6]}
37... Rxf1# {[%clk 0:00:30.3]} 0-1

[Event "*** Titled Tuesday Blitz"]
[Site "Chess.com"]
[Date "2021.04.27"]
[Round "1"]
[White "Steegersee"]
[Black "nss13"]
[Result "0-1"]
[WhiteElo "2222"]
[BlackElo "2554"]
[TimeControl "180+1"]
[EndTime "10:05:37 PDT"]
[Termination "nss13 won by resignation"]

1. e4 {[%clk 0:02:56.5]} 1... c5 {[%clk 0:02:59.1]} 2. Nf3 {[%clk 0:02:55.5]}
2... e6 {[%clk 0:02:59.4]} 3. d4 {[%clk 0:02:55.5]} 3... cxd4 {[%clk 0:03:00.3]}
4. Nxd4 {[%clk 0:02:55.9]} 4... Nc6 {[%clk 0:03:00.4]} 5. Nxc6 {[%clk
0:02:50.5]} 5... bxc6 {[%clk 0:03:01.3]} 6. Bd3 {[%clk 0:02:50]} 6... Ba6 {[%clk
0:03:01.1]} 7. O-O {[%clk 0:02:34]} 7... Bxd3 {[%clk 0:03:00]} 8. Qxd3 {[%clk
0:02:34.9]} 8... d5 {[%clk 0:03:00.5]} 9. b3 {[%clk 0:02:34.8]} 9... Nf6 {[%clk
0:03:00.1]} 10. exd5 {[%clk 0:02:32.1]} 10... cxd5 {[%clk 0:03:01]} 11. Bb2
{[%clk 0:02:31.6]} 11... Be7 {[%clk 0:03:01.1]} 12. Nd2 {[%clk 0:02:30.1]} 12...
O-O {[%clk 0:03:00.9]} 13. c4 {[%clk 0:02:30.2]} 13... dxc4 {[%clk 0:02:15.6]}
14. Qxd8 {[%clk 0:02:31.1]} 14... Rfxd8 {[%clk 0:02:15.5]} 15. Nxc4 {[%clk
0:02:32]} 15... Nd5 {[%clk 0:02:15.5]} 16. Rfd1 {[%clk 0:02:21.3]} 16... Rac8
{[%clk 0:02:15.2]} 17. Rac1 {[%clk 0:02:18.8]} 17... f6 {[%clk 0:02:14.7]} 18.
g3 {[%clk 0:02:17.1]} 18... e5 {[%clk 0:02:07.1]} 19. Na5 {[%clk 0:01:53.8]}
19... Rxc1 {[%clk 0:01:55.1]} 20. Rxc1 {[%clk 0:01:34.5]} 20... Nb4 {[%clk
0:01:54.1]} 21. Rc7 {[%clk 0:01:16.2]} 21... Bf8 {[%clk 0:01:36]} 22. Nc4 {[%clk
0:01:02.4]} 22... Rd1+ {[%clk 0:01:09.2]} 23. Kg2 {[%clk 0:01:01.8]} 23... Nd3
{[%clk 0:01:09.7]} 24. Ba3 {[%clk 0:00:37.3]} 24... Bxa3 {[%clk 0:01:05.1]} 25.
Nxa3 {[%clk 0:00:38.2]} 25... Rd2 {[%clk 0:01:03.4]} 26. Rc2 {[%clk 0:00:37.9]}
26... Ne1+ {[%clk 0:01:01]} 0-1

[Event "*** Titled Tuesday Blitz"]
[Site "Chess.com"]
[Date "2021.04.27"]
[Round "1"]
[White "Triumphmate"]
[Black "AlexTriapishko"]
[Result "0-1"]
[WhiteElo "2440"]
[BlackElo "2858"]
[TimeControl "180+1"]
[EndTime "10:05:40 PDT"]
[Termination "AlexTriapishko won by resignation"]

1. e4 {[%clk 0:03:00.5]} 1... e5 {[%clk 0:02:59.6]} 2. Nf3 {[%clk 0:03:00.8]}
2... Nc6 {[%clk 0:03:00.2]} 3. Nc3 {[%clk 0:03:01.2]} 3... Nf6 {[%clk
0:02:57.5]} 4. Bb5 {[%clk 0:03:01.5]} 4... Bc5 {[%clk 0:02:56.2]} 5. Nxe5 {[%clk
0:02:58.7]} 5... O-O {[%clk 0:02:47.2]} 6. Bxc6 {[%clk 0:02:51.2]} 6... dxc6
{[%clk 0:02:40.4]} 7. d3 {[%clk 0:02:39.8]} 7... Qd4 {[%clk 0:02:33.2]} 8. Be3
{[%clk 0:02:30.9]} 8... Qxe5 {[%clk 0:02:33.1]} 9. d4 {[%clk 0:02:28.9]} 9...
Qe7 {[%clk 0:02:33.7]} 10. dxc5 {[%clk 0:02:18.8]} 10... Nxe4 {[%clk 0:02:33]}
11. Nxe4 {[%clk 0:02:19.1]} 11... Qxe4 {[%clk 0:02:33.9]} 12. O-O {[%clk
0:02:01.2]} 12... Be6 {[%clk 0:02:27.3]} 13. Qd3 {[%clk 0:01:44.8]} 13... Qxd3
{[%clk 0:02:09]} 14. cxd3 {[%clk 0:01:45.7]} 14... Rad8 {[%clk 0:02:09.7]} 15.
Rfd1 {[%clk 0:01:41.1]} 15... Rd7 {[%clk 0:02:10.2]} 16. d4 {[%clk 0:01:34.1]}
16... f6 {[%clk 0:02:09.9]} 17. Rd2 {[%clk 0:01:26.4]} 17... Bd5 {[%clk
0:02:09.1]} 18. a3 {[%clk 0:01:16.3]} 18... Re8 {[%clk 0:02:09.2]} 19. Rad1
{[%clk 0:01:06]} 19... g5 {[%clk 0:02:08]} 20. h3 {[%clk 0:01:06.2]} 20... Kg7
{[%clk 0:02:07.7]} 21. b4 {[%clk 0:01:05.5]} 21... Kg6 {[%clk 0:02:07.4]} 22.
Rd3 {[%clk 0:01:01.5]} 22... Rde7 {[%clk 0:02:04.3]} 23. g4 {[%clk 0:00:57.8]}
23... h5 {[%clk 0:02:01.5]} 24. gxh5+ {[%clk 0:00:37.3]} 24... Kxh5 {[%clk
0:02:01.1]} 25. Kh2 {[%clk 0:00:38]} 25... Kg6 {[%clk 0:01:59.7]} 26. Rg1 {[%clk
0:00:22.8]} 26... Kf5 {[%clk 0:01:51.4]} 27. Rg3 {[%clk 0:00:22.3]} 27... Rh8
{[%clk 0:01:49.8]} 28. Rc3 {[%clk 0:00:21.7]} 28... Reh7 {[%clk 0:01:45.6]} 29.
f3 {[%clk 0:00:16.6]} 29... Re8 {[%clk 0:01:42.1]} 30. a4 {[%clk 0:00:16.1]}
30... Rhe7 {[%clk 0:01:41.2]} 31. Bf2 {[%clk 0:00:15.3]} 31... Re2 {[%clk
0:01:41.2]} 32. Kg2 {[%clk 0:00:15.9]} 32... Ra2 {[%clk 0:01:37.4]} 33. b5
{[%clk 0:00:15.5]} 33... Ree2 {[%clk 0:01:36.6]} 34. bxc6 {[%clk 0:00:16.4]}
34... Rxf2+ {[%clk 0:01:36.8]} 0-1